fUSD/lending_fUSD_20241029
["ID","MTS","AMOUNT","RATE_DAILY","PERIOD"]
[340971672,1730186867201,-5.37,0.0002678,120]
[340971673,1730186867215,-169.11,0.0002678,120]
[340971674,1730186867224,-5.37,0.00026856,120]
[340971675,1730186878191,1043.63277788,0.0001,2]
[340971676,1730186881060,205656.17930361,0.00015,2]
[340971686,1730186919852,948.99802345,0.0001,2]
[340971708,1730187031648,-500.0,0.00015265,2]
[340971709,1730187031679,-1954.273153,0.00015265,2]
[340971710,1730187031688,-155.98,0.00015342,2]
[340971711,1730187031698,-366.58971274,0.00015789,2]
[340971712,1730187031707,-7589.39777743,0.00015789,2]
[340971713,1730187031717,-427.761,0.0001589,2]
[340971714,1730187031726,-270.0201,0.0001589,2]
[340971715,1730187031734,-4735.87689101,0.0001589,2]
[340971716,1730187031953,-3554.0,0.0001589,2]
[340971748,1730187037672,-899.85,0.0001589,2]
[340971749,1730187037850,-461.545,0.0001589,2]
[340971757,1730187039596,-552.77280899,0.0001589,2]
[340971758,1730187039606,-289.29984001,0.0001589,2]
[340971759,1730187039616,-277.127351,0.000159,2]
[340971762,1730187042620,-3301.61224458,0.000159,2]
[340971763,1730187042631,-2143.19758138,0.000159,2]
[340971765,1730187045751,-3552.93835249,0.000159,2]
[340971766,1730187048966,500.0,0.00043776,30]
[340971767,1730187049271,500.0,0.00043776,30]
[340971768,1730187049561,500.0,0.00043776,30]
[340971769,1730187049832,543.97292241,0.00043776,30]
[340971770,1730187072523,483.48751664,0.00043776,30]
[340971772,1730187316971,94.70216708,0.00024914,120]
[340971773,1730187378852,200.0,0.00043772,30]
[340971774,1730187489713,832.31,0.00043772,30]
[340971775,1730187489997,832.31,0.00043772,30]
[340971776,1730187490286,832.31,0.00043772,30]
[340971777,1730187490576,832.31,0.00043772,30]
[340971778,1730187490892,832.31,0.00043772,30]
[340971779,1730187491191,832.31,0.00043772,30]
[340971780,1730187491471,832.31,0.00043772,30]
[340971781,1730187491754,832.31,0.00043772,30]
[340971782,1730187492093,832.31,0.00043772,30]
[340971783,1730187492360,832.31,0.00043772,30]
[340971784,1730187492645,832.31,0.00043772,30]
[340971785,1730187492916,832.31,0.00043772,30]
[340971786,1730187493230,832.31,0.00043772,30]
[340971787,1730187493494,832.31,0.00043772,30]
[340971788,1730187493766,832.31,0.00043772,30]
[340971789,1730187494044,832.31,0.00043772,30]
[340971790,1730187494325,832.31,0.00043772,30]
[340971791,1730187494604,832.31,0.00043772,30]
[340971792,1730187495228,832.31,0.00043772,30]
[340971793,1730187495505,832.31,0.00043772,30]
[340971794,1730187495794,832.31,0.00043772,30]
[340971795,1730187496073,832.31,0.00043772,30]
[340971796,1730187496692,832.31,0.00043772,30]
[340971797,1730187497322,832.5338792,0.00043772,30]
[340971799,1730187603231,8100.0,0.00043806,120]
[340971800,1730187804558,7141.72,0.00043806,30]
[340971801,1730187828251,550.0,0.00015,2]
[340971802,1730187946799,1026.92,0.0001365,2]
[340971803,1730187951126,500.0,0.00043806,30]
[340971804,1730187951398,500.0,0.00043806,30]
[340971805,1730187951699,500.0,0.00043806,30]
[340971806,1730187951974,500.0,0.00043806,30]
[340971807,1730187952275,500.0,0.00043806,30]
[340971808,1730187952587,554.81706862,0.00043806,30]
[340971880,1730188075655,500.0,0.00043806,30]
[340971881,1730188075948,466.26160578,0.00043806,30]
[340971882,1730188108254,529.55,0.00014992,2]
[340971883,1730188111935,987.0,0.00014992,2]
[340971902,1730188125552,200.0,0.00014969,2]
[340971904,1730188170201,23900.0,0.00014911,2]
[340971905,1730188192386,155.0,0.00043806,30]
[340971906,1730188199242,1271.2,0.00014911,2]
[340971932,1730188231690,-250.0,0.00015003,2]
[340971934,1730188231699,-500.0,0.00015003,2]
[340971936,1730188231709,-313.91,0.00015003,2]
[340971937,1730188231720,-989.75860655,0.00015108,2]
[340971938,1730188231748,-107.95139345,0.00015108,2]
[340971941,1730188231761,-720.26599545,0.00015216,2]
[340971943,1730188231776,-1007.22400455,0.00015216,2]
[340971946,1730188231787,-150.0,0.00015289,2]
[340971948,1730188231798,-160.76,0.00015342,2]
[340971950,1730188231808,-292.15,0.00015399,2]
[340971952,1730188231819,-250.0,0.00015482,2]
[340971954,1730188231831,-304.3,0.00015613,2]
[340971956,1730188231842,-70.14389796,0.00015691,2]
[340971959,1730188231911,-429.85610204,0.00015691,2]
[340971960,1730188231922,-1837.93,0.00015691,2]
[340971961,1730188231934,-300.0,0.00015723,2]
[340971962,1730188231944,-155.06,0.00015724,2]
[340971963,1730188231956,-181.72,0.00015724,2]
[340971964,1730188231968,-172.49,0.00015724,2]
[340971965,1730188231980,-313.91,0.00015753,2]
[340971966,1730188231991,-500.0,0.00015787,3]
[340971967,1730188232002,-1108.53,0.00015787,2]
[340971968,1730188232013,-161.39161808,0.00015873,2]
[340971970,1730188232024,-500.0,0.00015873,2]
[340971972,1730188232035,-299.99,0.00015889,2]
[340971975,1730188232047,-4826.35322334,0.0001589,2]
[340971977,1730188232059,-290.0526551,0.0001589,2]
[340971980,1730188232079,-799.63438907,0.0001589,2]
[340971983,1730188232095,-1931.79799307,0.0001589,2]
[340971985,1730188232108,-2929.26575173,0.0001589,2]
[340972032,1730188232685,307.3,0.00014937,2]
[340972052,1730188237667,-572.62748992,0.0001589,2]
[340972053,1730188237712,-8749.03949863,0.0001589,2]
[340972054,1730188237863,-757.258615,0.0001589,2]
[340972055,1730188237876,-34905.97909274,0.0001589,2]
[340972056,1730188238136,-1014.26609025,0.0001589,2]
[340972060,1730188239745,-550.44,0.0001589,2]
[340972061,1730188240124,-7838.629264,0.0001589,2]
[340972078,1730188242790,-35868.00506049,0.0001589,2]
[340972079,1730188242801,-1000.0,0.0001589,2]
[340972080,1730188242812,-162.39098038,0.00015899,2]
[340972081,1730188242825,-607.440781,0.000159,2]
[340972082,1730188242838,-500.0,0.000159,2]
[340972083,1730188242848,-10150.5449,0.000159,2]
[340972084,1730188242859,-181.2013319,0.000159,2]
[340972085,1730188242870,-1114.41298141,0.000159,2]
[340972086,1730188242881,-253.13428236,0.000159,2]
[340972087,1730188242892,-940.87269061,0.000159,2]
[340972088,1730188242903,-231.78142772,0.000159,2]
[340972089,1730188242914,-1026.92,0.00015914,2]
[340972090,1730188242925,-150.0,0.00015937,2]
[340972091,1730188242936,-2833.89,0.00015937,2]
[340972092,1730188242947,-321.64046036,0.00015973,2]
[340972093,1730188242958,-500.0,0.00015973,2]
[340972094,1730188242969,-159.82411344,0.00015973,2]
[340972095,1730188242979,-500.0,0.00015973,2]
[340972096,1730188242990,-500.0,0.00015973,2]
[340972097,1730188243001,-500.0,0.00015973,2]
[340972098,1730188243013,-500.0,0.00015973,2]
[340972099,1730188243024,-482.18,0.0001598,3]
[340972100,1730188243034,-230.59,0.0001598,2]
[340972101,1730188243045,-438.53424611,0.00015989,2]
[340972102,1730188243056,-180.28948286,0.00015989,2]
[340972103,1730188243067,-83742.3152046,0.0001599,3]
[340972104,1730188243078,-48937.7419566,0.0001599,3]
[340972105,1730188243089,-228.52404071,0.0001599,2]
[340972106,1730188243100,-230.59,0.0001599,2]
[340972107,1730188243111,-230.59,0.0001599,2]
[340972108,1730188243122,-230.59,0.0001599,2]
[340972109,1730188243304,-230.59,0.0001599,2]
[340972110,1730188243316,-150.01,0.00015999,2]
[340972111,1730188243327,-1061.64830664,0.00015999,2]
[340972112,1730188243336,-839.77812835,0.00015999,2]
[340972113,1730188243345,-839.77812835,0.00015999,2]
[340972114,1730188243355,-839.77812835,0.00015999,2]
[340972115,1730188243365,-839.77812835,0.00015999,2]
[340972116,1730188243374,-839.77812835,0.00015999,2]
[340972117,1730188243383,-963.91924298,0.00015999,2]
[340972118,1730188243393,-963.91924298,0.00015999,2]
[340972119,1730188243402,-3317109.55283183,0.00016,2]
[340972120,1730188243415,-691370.0,0.00016,2]
[340972121,1730188243427,-674498.6292,0.00016,2]
[340972122,1730188243439,-16516.14535542,0.00016,2]
[340972130,1730188245831,-379.12575632,0.00015999,2]
[340972131,1730188264694,410.63114,0.00043806,30]
[340972132,1730188269900,503.02680699,0.00043806,30]
[340972133,1730188335798,176.83,0.00014006,2]
[340972134,1730188383581,510.77638763,0.00043806,30]
[340972135,1730188559521,601.95918303,0.00043806,30]
[340972136,1730188699836,606.69,0.00043806,30]
[340972137,1730188704798,500.0,0.00043806,30]
[340972138,1730188789151,500.0,0.00043737,30]
[340972139,1730188842052,500.0,0.00043737,30]
[340972140,1730188842340,578.98596913,0.00043737,30]
[340972141,1730189004961,500.0,0.00043737,30]
[340972142,1730189005980,554.39457215,0.00043737,30]
[340972143,1730189108861,525.38971114,0.00043737,30]
[340972144,1730189289737,1181.62176619,0.00043737,120]
[340972145,1730189427618,500.0,0.00043737,30]
[340972146,1730189428048,500.0,0.00043737,30]
[340972147,1730189428193,500.0,0.00043737,30]
[340972148,1730189428465,555.95,0.00043737,30]
[340972168,1730189431810,-426.886786,0.00015165,2]
[340972171,1730189431820,-939.96,0.00015242,2]
[340972174,1730189431830,-718.73968401,0.00015327,2]
[340972178,1730189431840,-150.8,0.00015342,2]
[340972181,1730189431850,-200.0,0.0001537,2]
[340972183,1730189431860,-300.0,0.00015426,2]
[340972187,1730189431870,-5799.64953,0.00015427,2]
[340972195,1730189431917,-2571.46240578,0.00015427,2]
[340972212,1730189432024,-15528.88806422,0.00015427,2]
[340972215,1730189432033,-150.0,0.00015455,2]
[340972217,1730189432043,-718.73968401,0.0001558,2]
[340972219,1730189432052,-1242.29,0.00015623,2]
[340972221,1730189432062,-444.42,0.0001568,2]
[340972223,1730189432072,-468.08,0.00015703,2]
[340972225,1730189432082,-400.0,0.000158,5]
[340972227,1730189432091,-1000.0,0.00015842,2]
[340972229,1730189432100,-400.65,0.00015842,2]
[340972231,1730189432110,-250.0,0.00015845,2]
[340972233,1730189432119,-14130.6118,0.0001589,2]
[340972235,1730189432129,-1000.89007812,0.0001589,2]
[340972238,1730189432138,-1000.89007812,0.0001589,2]
[340972241,1730189432147,-4485.01157497,0.00015899,2]
[340972244,1730189432157,-2035.9278,0.000159,2]
[340972247,1730189432167,-162.39098037,0.000159,2]
[340972249,1730189432176,-900.0,0.000159,5]
[340972251,1730189432186,-250.0,0.00015937,2]
[340972253,1730189432196,-1482.27,0.00015973,2]
[340972255,1730189432205,-500.0,0.00015973,2]
[340972257,1730189432215,-558.904068,0.0001599,3]
[340972259,1730189432224,-184.41,0.0001599,3]
[340972260,1730189432233,-581.39028565,0.00015999,2]
[340972261,1730189432243,-21960.9937031,0.00016,2]
[340972263,1730189436824,500.0,0.00043737,30]
[340972266,1730189438004,-553.25,0.0001599,3]
[340972267,1730189438014,-387.59352377,0.00015999,2]
[340972268,1730189438023,-37575.2421168,0.00016,2]
[340972275,1730189442921,-1931.30136802,0.00016,2]
[340972276,1730189443080,-1015.688032,0.00016,2]
[340972280,1730189445500,500.0,0.00043737,30]
[340972282,1730189445908,-2130.57,0.00016,2]
[340972284,1730189447160,500.0,0.00043737,30]
[340972285,1730189458402,500.0,0.00043737,30]
[340972286,1730189466634,500.0,0.00043737,30]
[340972287,1730189473976,367.52889021,0.00043737,30]
[340972288,1730189475056,331.76695854,0.00043737,30]
[340972289,1730189490334,500.0,0.00043737,30]
[340972290,1730189497550,1000.0,0.00043737,120]
[340972291,1730189497836,511.59,0.00043737,120]
[340972292,1730189511842,500.0,0.00043737,30]
[340972293,1730189540755,50000.0,0.00043737,30]
[340972294,1730189545785,50000.0,0.00043737,31]
[340972295,1730189548463,500.0,0.00043737,30]
[340972296,1730189548511,150.0,0.00043737,30]
[340972297,1730189550951,50000.0,0.00043737,32]
[340972298,1730189556137,50000.0,0.00043737,33]
[340972299,1730189561743,556.47760169,0.00043737,30]
[340972300,1730189565949,10423.85380581,0.00043737,34]
[340972301,1730189654028,550.0,0.00015,2]
[340972302,1730190475009,1184.45,0.00014964,2]
[340972303,1730190495894,23900.0,0.00014997,2]
[340972305,1730190523508,2430.0,0.000145,2]
[340972306,1730190525055,150.29526786,0.00015,15]
[340972322,1730190632178,-1018.83,0.00015144,2]
[340972323,1730190632187,-200.0,0.00015232,2]
[340972324,1730190632196,-150.0,0.00015284,2]
[340972325,1730190632206,-213.15982388,0.00015307,2]
[340972326,1730190632217,-162.01,0.00015342,2]
[340972327,1730190632226,-213.15982387,0.00015388,2]
[340972328,1730190632235,-435.88,0.00015407,2]
[340972329,1730190632245,-1287.79293281,0.00015428,2]
[340972330,1730190632289,-1463.20706719,0.00015428,2]
[340972331,1730190632299,-295.75373024,0.00015433,2]
[340972332,1730190632308,-250.0,0.00015488,2]
[340972333,1730190632317,-299.99,0.00015488,2]
[340972334,1730190632326,-530.93084474,0.00015607,2]
[340972335,1730190632348,-249.87915526,0.00015607,2]
[340972337,1730190632357,-250.0,0.00015664,2]
[340972339,1730190632366,-480.125,0.0001568,2]
[340972341,1730190632375,-300.0,0.00015707,2]
[340972343,1730190632384,-353.84,0.00015708,2]
[340972345,1730190632394,-1220.16,0.00015708,2]
[340972347,1730190632403,-56.72162201,0.00015708,2]
[340972349,1730190632414,-737.91837799,0.00015708,2]
[340972351,1730190632423,-400.0,0.000158,5]
[340972352,1730190632432,-800.0,0.00015805,2]
[340972353,1730190632441,-1507.47,0.00015805,2]
[340972354,1730190632450,-66.29492709,0.00015808,2]
[340972355,1730190638151,-310.24010705,0.00015808,2]
[340972356,1730190638163,-275.96458678,0.00015808,2]
[340972357,1730190638175,-633.98037908,0.00015808,2]
[340972358,1730190638186,-206.87,0.00015864,2]
[340972359,1730190638195,-4036.51041741,0.0001589,2]
[340972360,1730190638205,-3310.04970351,0.000159,2]
[340972361,1730190638217,-1747.04189649,0.000159,2]
[340972362,1730190638227,-800.0,0.000159,5]
[340972363,1730190638237,-432.34035105,0.00015973,2]
[340972364,1730190638248,-67.65964895,0.00015973,2]
[340972365,1730190638257,-1000.0,0.00015989,2]
[340972366,1730190638267,-458.478253,0.0001599,2]
[340972367,1730190638276,-368.82,0.0001599,3]
[340972368,1730190638286,-615.68103165,0.00015999,2]
[340972369,1730190638295,-258.39568251,0.00015999,2]
[340972370,1730190638305,-1001.4485,0.00015999,2]
[340972371,1730190638314,-42268.26568884,0.00016,2]
[340972372,1730190638327,-1423.31634,0.00016,2]
[340972373,1730190638499,-585.097,0.00016,2]
[340972374,1730190638512,-537.13002854,0.00016,2]
[340972375,1730190638542,-1826.19952413,0.00016,2]
[340972376,1730190638554,-655.37677027,0.00016,2]
[340972383,1730190640351,-687.22850004,0.00016,2]
[340972384,1730190640363,-264.14499999,0.00016,2]
[340972390,1730190643107,-1066.2,0.00016,2]
[340972391,1730190643120,-524.18902528,0.00016,2]
[340972500,1730190809742,322.08,0.000145,3]
[340972502,1730190878298,150.0,0.00015,3]
[340972503,1730191457558,1001.98,0.00014821,2]
[340972504,1730191481909,550.0,0.00015,2]
[340972505,1730191570962,-158.47,0.00015342,2]
[340972506,1730191570990,-175.12,0.00015342,2]
[340972507,1730191591925,-1215.0,0.00015598,2]
[340972508,1730191591954,-1000.0,0.00015839,2]
[340972509,1730191591982,-899.24800207,0.00015839,2]
[340972510,1730191592010,-300.0,0.00015839,2]
[340972511,1730191592037,-63975.75781401,0.0001584,2]
[340972512,1730191592065,-416.12445278,0.00015858,2]
[340972513,1730191592092,-1000.0,0.000159,2]
[340972514,1730191592121,-3632.85937566,0.000159,2]
[340972515,1730191592148,-2500.0,0.000159,2]
[340972516,1730191592175,-500.0,0.00015973,2]
[340972517,1730191592203,-258.39568252,0.00015999,2]
[340972518,1730191592230,-2700.19,0.00015999,2]
[340972519,1730191592259,-654418.9960096,0.00016,2]
[340972520,1730191592434,-412885.83866336,0.00016,2]
[340972534,1730191832374,-258.39568251,0.00015999,2]
[340972535,1730191832385,-5791.70145932,0.00016,2]
[340972536,1730191832396,-4415.01305,0.00016,2]
[340972537,1730191832408,-6847.92945714,0.00016,2]
[340972538,1730191832431,-5257.19999999,0.00016,2]
[340972539,1730191832545,-677.88,0.00016,2]
[340972545,1730191838469,-2197.82259997,0.00016,2]
[340972546,1730191838480,-2450.89145897,0.00016,2]
[340972547,1730191838492,-16006.66945617,0.00016,2]
[340972548,1730191838503,-3075.01551617,0.00016,2]
[340972556,1730191840521,-710.965,0.00016,2]
[340972557,1730191843339,-1312.86149112,0.00016,2]
[340972558,1730191843351,-1027.88982435,0.00016,2]
[340972559,1730191843363,-8048.1781723,0.00016,2]
[340972560,1730191843450,-6332.37462489,0.00016,2]
[340972561,1730191843462,-629.74299925,0.00016,2]
[340972562,1730191843558,-6006.57680003,0.00016,2]
[340972563,1730191843570,-35270.157664,0.00016,2]
[340972565,1730191846390,-150.8,0.00015342,2]
[340972566,1730191846400,-7170.61340783,0.00016,2]
[340972572,1730191846699,-0.214165,0.00016,2]
[340972574,1730191846711,-45331.18115899,0.00016,2]
[340972576,1730191846722,-48233.98176904,0.00016,2]
[340972577,1730191846855,-499.99,0.00016,2]
[340972578,1730191846868,-416.12445278,0.00016343,2]
[340972579,1730191846877,-250.0,0.00016372,2]
[340972580,1730191846887,-477.85,0.00016372,2]
[340972581,1730191846896,-3294.67387882,0.00016372,2]
[340972582,1730191881156,1518.18,0.00015,10]
[340972583,1730191964139,978.04,0.00014918,2]
[340972584,1730192225040,1000.0,0.00024,60]
[340972586,1730192497934,929.13,0.00014462,2]
[340972588,1730192675739,3437.71682201,0.00015,10]
[340972604,1730193031471,-163.57,0.00015342,2]
[340972605,1730193031481,-153.38,0.00015342,2]
[340972606,1730193031495,-424.6858336,0.00015983,2]
[340972607,1730193031504,-50.9542838,0.00016081,2]
[340972608,1730193031515,-3163.61163349,0.00016081,2]
[340972609,1730193031583,-870.02705689,0.00016081,2]
[340972610,1730193031644,-320.58062082,0.00016081,2]
[340972611,1730193031777,-202.56137918,0.00016371,2]
[340972612,1730193031800,-94.72583025,0.00016371,2]
[340972613,1730193031809,-354.24601408,0.00016372,2]
[340972617,1730193035833,882.67,0.00014835,2]
[340972642,1730193037630,-1645.75398592,0.00016372,2]
[340972644,1730193037639,-200.0,0.00016372,2]
[340972646,1730193037648,-354.70845408,0.00016374,2]
[340972788,1730193039505,-273.54768779,0.00016371,2]
[340972789,1730193039539,-23.73952163,0.00016371,2]
[340972790,1730193039549,-1188.26437917,0.00016374,2]
[340972791,1730193039731,-61.50305495,0.00016374,2]
[340972792,1730193039741,-157.19,0.00016381,2]
[340972793,1730193039751,-250.0,0.00016393,2]
[340972794,1730193039762,-1058.60709759,0.00016395,2]
[340972795,1730193039774,-1308.72290241,0.00016395,2]
[340972796,1730193039783,-11162.3364115,0.00016397,2]
[340972800,1730193042566,-721.38138366,0.00016397,2]
[340972801,1730193042732,-735.0,0.00016397,2]
[340972862,1730193310186,550.0,0.00015,2]
[340972868,1730193638316,838.53,0.00013916,2]
[340972869,1730193702877,212.03,0.00024741,120]
[340972873,1730193992162,-158.25,0.00015342,2]
[340972874,1730193992185,-23741.75,0.00015748,2]
[340972875,1730193998452,-158.25,0.00015748,2]
[340972876,1730194000819,-186.18,0.00015785,2]
[340972877,1730194000841,-250.0,0.0001582,2]
[340972878,1730194000863,-520.9887542,0.00015909,2]
[340972879,1730194002457,-957.1687542,0.00015909,2]
[340972880,1730194003104,-957.1687542,0.00015909,2]
[340972881,1730194003699,-957.1687542,0.00015909,2]
[340972882,1730194004283,-957.1687542,0.00015909,2]
[340972883,1730194004823,-957.1687542,0.00015909,2]
[340972884,1730194005947,-957.1687542,0.00015909,2]
[340972885,1730194007252,-957.1687542,0.00015909,2]
[340972886,1730194008063,-957.1687542,0.00015909,2]
[340972887,1730194008718,-957.1687542,0.00015909,2]
[340972888,1730194009802,-957.1687542,0.00015909,2]
[340972889,1730194010897,-957.1687542,0.00015909,2]
[340972890,1730194011480,-957.1687542,0.00015909,2]
[340972891,1730194012111,-957.1687542,0.00015909,2]
[340972892,1730194016564,-13192.5812458,0.00015909,2]
[340972893,1730194019083,-12235.4124916,0.00015909,2]
[340972896,1730194142937,796.6,0.00013809,2]
[340973698,1730194231592,-357.17057692,0.0001567,2]
[340973700,1730194231705,-292.50942308,0.0001567,2]
[340973701,1730194231716,-250.0,0.00015678,2]
[340973702,1730194231725,-250.0,0.00015747,2]
[340973703,1730194231735,-500.0,0.000158,5]
[340973704,1730194231746,-1100.0,0.000159,5]
[340973705,1730194231757,-3486.16239249,0.00015909,2]
[340973706,1730194231769,-579.46346634,0.00015909,2]
[340973707,1730194231780,-737.5985368,0.00015909,2]
[340973708,1730194231792,-554.04576987,0.00015909,2]
[340973710,1730194231803,-2962.33469647,0.00015909,2]
[340973711,1730194231813,-385.61959776,0.00015961,2]
[340973712,1730194231879,-39.06623584,0.00015961,2]
[340973723,1730194232023,-500.0,0.00015973,2]
[340973725,1730194232034,-1166.87796557,0.0001599,3]
[340973727,1730194232045,-1629.33192855,0.0001599,3]
[340973729,1730194232057,-2624.2,0.0001599,3]
[340973731,1730194232069,-713.74,0.0001599,3]
[340973746,1730194237884,-157.19,0.00015815,2]
[340973747,1730194237894,-3076.23274633,0.0001599,3]
[340973818,1730194239824,-262.825,0.0001599,3]
[340973819,1730194239938,-2141.22,0.0001599,3]
[340973820,1730194239997,-907.10559,0.0001599,3]
[340973821,1730194240008,-1211.85931655,0.0001599,3]
[340973842,1730194242680,-262.8747,0.0001599,3]
[340973847,1730194242796,-5053.34606067,0.0001599,3]
[340973893,1730194246048,-4283.16,0.0001599,3]
[340974098,1730194598869,150.0,0.00015,3]
[340974101,1730194704597,756.77,0.00013483,2]
[340974106,1730194973951,-212.03,0.00015182,2]
[340974107,1730194973974,-250.0,0.00015263,2]
[340974108,1730194973995,-250.0,0.00015263,2]
[340974109,1730194974017,-150.8,0.00015342,2]
[340974110,1730194974038,-324.84,0.00015354,2]
[340974111,1730194974061,-153.87,0.00015699,2]
[340974112,1730194974210,-153.87,0.00015712,2]
[340974113,1730194974232,-153.87,0.00015725,2]
[340974114,1730194974255,-153.87,0.00015738,2]
[340974115,1730194974276,-1122.84,0.00015746,2]
[340974116,1730194974297,-756.77,0.00015747,2]
[340974117,1730194974319,-153.87,0.00015751,2]
[340974118,1730194974339,-2453.27,0.00015751,2]
[340974119,1730194974361,-300.0,0.00015763,2]
[340974120,1730194974381,-153.87,0.00015764,2]
[340974121,1730194974402,-441.6,0.00015764,2]
[340974122,1730194974423,-23900.0,0.00015768,2]
[340974123,1730194974443,-153.87,0.00015777,2]
[340974124,1730194974465,-1000.0,0.00015781,2]
[340974125,1730194974486,-384.1,0.00015781,2]
[340974126,1730194974506,-424.6858336,0.00015874,2]
[340974127,1730194974531,-3269.57343813,0.00015899,2]
[340974128,1730194974553,-2889.63883065,0.000159,2]
[340974129,1730194974577,-500.0,0.00015973,2]
[340974130,1730194974597,-169.2872487,0.00015973,2]
[340974131,1730194974617,-150.0,0.00015989,2]
[340974132,1730194974647,-112201.746554,0.0001599,3]
[340974133,1730194974673,-163.96575925,0.0001599,2]
[340974134,1730194974693,-171.54986489,0.00015999,2]
[340974135,1730194974716,-957.1687542,0.00015999,2]
[340974136,1730194974737,-957.1687542,0.00015999,2]
[340974137,1730194974757,-957.1687542,0.00015999,2]
[340974138,1730194974777,-957.1687542,0.00015999,2]
[340974139,1730194974797,-957.1687542,0.00015999,2]
[340974140,1730194974817,-957.1687542,0.00015999,2]
[340974141,1730194974840,-957.1687542,0.00015999,2]
[340974142,1730194974863,-957.1687542,0.00015999,2]
[340974143,1730194974885,-957.1687542,0.00015999,2]
[340974144,1730194974906,-957.1687542,0.00015999,2]
[340974145,1730194974927,-957.1687542,0.00015999,2]
[340974146,1730194974948,-957.1687542,0.00015999,2]
[340974147,1730194974972,-957.1687542,0.00015999,2]
[340974148,1730194974994,-957.1687542,0.00015999,2]
[340974149,1730194975016,-957.1687542,0.00015999,2]
[340974150,1730194975038,-1324.40873659,0.00015999,2]
[340974151,1730194975059,-1324.40873659,0.00015999,2]
[340974152,1730194975081,-1324.40873659,0.00015999,2]
[340974153,1730194975102,-1324.40873659,0.00015999,2]
[340974154,1730194975123,-1324.40873659,0.00015999,2]
[340974155,1730194975144,-1324.40873659,0.00015999,2]
[340974156,1730194975165,-1324.40873659,0.00015999,2]
[340974157,1730194975186,-1324.40873659,0.00015999,2]
[340974158,1730194975208,-1324.40873659,0.00015999,2]
[340974159,1730194975230,-1324.40873659,0.00015999,2]
[340974160,1730194975252,-1324.40873659,0.00015999,2]
[340974161,1730194975274,-1324.40873659,0.00015999,2]
[340974162,1730194975296,-1163261.56744766,0.00016,2]
[340974163,1730194982582,500.0,0.00015999,2]
[340974164,1730194982631,500.0,0.00015999,2]
[340974165,1730194982681,270.11865337,0.00015999,2]
[340974167,1730195024319,-1700.0,0.000179,6]
[340974170,1730195109899,-19900.0,0.00015892,2]
[340974188,1730195138262,550.0,0.00015,2]
[340974189,1730195221971,681.09,0.00013939,2]
[340974265,1730195431972,-250.0,0.00015064,2]
[340974266,1730195431981,-163.57,0.00015342,2]
[340974267,1730195431991,-424.6858336,0.00015769,2]
[340974268,1730195432000,-655.92883691,0.00015837,2]
[340974269,1730195432011,-2605.47116309,0.00015837,2]
[340974270,1730195432020,-3261.4,0.00015842,2]
[340974271,1730195432030,-3261.4,0.00015846,2]
[340974272,1730195432039,-3261.4,0.0001585,2]
[340974273,1730195432048,-3261.4,0.00015854,2]
[340974274,1730195432056,-3261.4,0.00015858,2]
[340974275,1730195432065,-3261.4,0.00015862,2]
[340974276,1730195432074,-3261.4,0.00015867,2]
[340974277,1730195432083,-1100.3,0.00015867,2]
[340974278,1730195432093,-3261.4,0.00015871,2]
[340974279,1730195432102,-500.0,0.00015873,2]
[340974280,1730195432111,-3261.4,0.00015875,2]
[340974281,1730195432120,-162.42,0.00015876,2]